bitfinex-derivatives/quotes_ETHF0:USTF0_20250910
["timestamp","ask_amount","ask_price","bid_price","bid_amount"]
[1757535504172,0.235,4332.8,4332.7,0.7823]
[1757535505675,0.235,4333.0,4332.8,0.3243]
[1757535506075,0.235,4333.0,4332.9,0.458]
[1757535506277,0.235,4333.0,4332.9,0.7823]
[1757535506872,0.4714,4333.0,4332.9,0.7823]
[1757535507081,0.8232,4333.0,4332.9,0.7823]
[1757535509779,0.4714,4333.0,4332.9,0.7823]
[1757535510776,0.8232,4333.0,4332.9,0.7823]
[1757535511982,0.4714,4333.0,4332.9,0.7823]
[1757535512283,0.235,4333.0,4332.9,0.7823]
[1757535513486,0.811,4333.0,4332.9,0.7823]
[1757535515181,0.235,4333.0,4332.9,0.7823]
[1757535516476,33.241,4333.7,4333.1,0.3249]
[1757535516681,33.6922,4333.7,4333.6,0.7656]
[1757535516988,0.4512,4333.3,4332.7,3.4418]
[1757535517288,0.803,4333.2,4333.1,0.5452]
[1757535517475,0.803,4333.2,4333.1,0.7656]
[1757535519279,33.475,4333.7,4333.6,0.4407]
[1757535519280,33.4652,4333.7,4333.6,0.4407]
[1757535519486,33.89504751,4333.7,4333.6,0.7656]
[1757535519786,33.89502181,4333.7,4333.6,0.7656]
[1757535519982,34.24682181,4333.7,4333.6,0.7656]
[1757535520181,34.47382181,4333.7,4333.6,0.7656]
[1757535521489,34.47382181,4333.7,4333.6,0.4407]
[1757535521682,34.47382181,4333.7,4333.6,0.2203]
[1757535524288,34.278,4333.7,4333.6,0.2203]
[1757535525791,34.278,4333.7,4333.5,3.2078]
[1757535525991,0.803,4333.6,4333.5,3.2078]
[1757535528390,0.803,4333.1,4333.0,0.7656]
[1757535531288,0.1355,4333.0,4332.9,3.2078]
[1757535531587,0.9385,4333.0,4332.9,3.2078]
[1757535531787,0.9385,4333.0,4332.9,3.4281]
[1757535531982,0.9385,4333.0,4332.9,3.753]
[1757535533695,0.9385,4333.0,4332.5,0.3249]
[1757535534386,0.4873,4332.5,4332.4,29.0249]
[1757535535294,0.4873,4332.5,4332.4,28.7]
[1757535535490,0.3518,4332.3,4332.2,0.2203]
[1757535535794,0.803,4332.3,4332.2,0.5452]
[1757535536390,0.803,4332.3,4332.2,0.2203]
[1757535538196,0.803,4332.3,4332.2,0.7763]
[1757535540498,0.3217,4332.4,4332.3,0.7728]
[1757535540796,0.5384,4332.4,4332.3,0.7728]
[1757535541696,0.7539,4332.4,4332.3,0.7728]
[1757535542498,0.365,4332.5,4331.9,28.7]
[1757535542692,0.7539,4331.9,4331.8,3.7595]
[1757535542894,0.7539,4331.9,4331.8,3.4246]
[1757535543096,0.7539,4331.9,4331.8,3.2078]
[1757535544200,0.7539,4331.9,4331.8,3.9806]
[1757535544401,0.5384,4331.9,4331.8,3.9806]
[1757535546796,3.3433,4333.0,4332.3,0.4379]
[1757535546998,1.18316546,4332.9,4332.8,0.2168]
[1757535547699,1.18316546,4332.9,4332.8,0.5517]
[1757535547898,0.9879,4332.9,4332.8,0.7728]
[1757535548104,5.37139334,4332.9,4331.2,1.34757702]
[1757535548298,3.2078,4331.1,4331.0,0.1279]
[1757535548601,3.2078,4331.1,4331.0,0.5658]
[1757535548602,3.4458,4331.1,4331.0,0.5658]
[1757535548802,3.4458,4331.1,4331.0,0.6937]
[1757535550407,3.4458,4331.1,4331.0,0.9007]
[1757535555898,3.70449852,4331.1,4331.0,0.9007]
[1757535561408,3.4458,4331.1,4331.0,0.9007]
[1757535561610,3.70463616,4331.1,4331.0,0.9007]
[1757535562511,3.70468076,4331.1,4331.0,0.9007]
[1757535569409,3.46668076,4331.1,4331.0,1.0286]
[1757535569611,0.237,4331.1,4331.0,1.0286]
[1757535570907,33.245,4331.4,4331.0,0.6937]
[1757535571109,0.237,4331.3,4331.2,0.4559]
[1757535571412,0.237,4331.3,4331.2,0.8117]
[1757535572306,0.4502053,4331.3,4331.2,0.8117]
[1757535572720,0.237,4331.3,4331.2,0.8117]
[1757535573016,0.4678,4331.3,4331.2,0.8117]
[1757535578311,0.68141328,4331.3,4331.2,0.8117]
[1757535582022,0.63424832,4331.3,4331.2,0.8117]
[1757535583824,0.42063504,4331.3,4331.2,0.8117]
[1757535586027,0.2308,4331.3,4331.2,0.8117]
[1757535586326,0.4668,4331.3,4331.2,0.8117]
[1757535586921,0.678131,4331.3,4331.2,0.8117]
[1757535587320,0.4668,4331.3,4331.2,0.8117]
[1757535588027,0.2308,4331.3,4331.2,0.8117]
[1757535588227,0.4668,4331.3,4331.2,0.8117]
[1757535588938,3.2078,4331.6,4331.2,4.81468]
[1757535589122,3.2078,4331.6,4331.5,1.0746]
[1757535589320,3.4438,4331.6,4331.5,1.0746]
[1757535589524,0.236,4331.6,4331.5,1.0746]
[1757535608454,7.67466,4331.6,4331.0,0.1279]
[1757535608754,3.2078,4331.1,4331.0,0.1324]
[1757535608954,4.05037511,4331.1,4330.5,0.3655]
[1757535609154,3.2078,4330.6,4330.5,0.5978]
[1757535609354,3.65507036,4330.6,4330.5,0.5978]
[1757535610455,3.4438,4330.6,4330.5,0.9277]
[1757535617262,7.4438,4330.6,4330.5,0.4578]
[1757535617459,7.64987323,4330.6,4329.5,0.37]
[1757535617762,3.2078,4330.0,4329.8,0.1279]
[1757535617958,0.235,4329.9,4329.8,0.3655]
[1757535618360,0.235,4329.9,4329.8,0.5978]
[1757535619559,0.235,4329.9,4329.8,0.9277]
[1757535621356,0.235,4329.9,4329.8,0.5675]
[1757535621662,0.235,4329.9,4329.5,0.1324]
[1757535621854,0.46596,4329.9,4329.1,0.3299]
[1757535622057,3.2078,4329.2,4329.1,0.3299]
[1757535622262,3.4428,4329.2,4329.1,0.3299]
[1757535623161,3.2078,4329.2,4329.1,0.7998]
[1757535623361,3.4428,4329.2,4329.1,0.7998]
[1757535625066,3.4428,4329.2,4329.1,0.9277]
[1757535625261,3.2078,4329.2,4329.1,0.9277]
[1757535625563,3.4428,4329.2,4329.1,0.9277]
[1757535626960,0.1502,4329.4,4329.2,0.3575]
[1757535627160,0.1502,4329.4,4329.3,0.4577]
[1757535627359,0.235,4329.4,4329.3,0.8152]
[1757535627566,3.2078,4329.7,4329.6,0.4577]
[1757535627766,3.4428,4329.7,4329.6,0.8152]
[1757535627957,3.4428,4329.7,4329.6,0.9431]
[1757535629360,3.2078,4329.7,4329.6,0.9431]
[1757535629560,3.4428,4329.7,4329.6,0.9431]
[1757535631265,3.2078,4329.7,4329.6,0.9431]
[1757535631662,3.4428,4329.7,4329.6,0.9431]
[1757535632259,3.2078,4329.7,4329.6,0.9431]
[1757535632459,0.0223,4329.9,4329.8,0.4577]
[1757535632668,0.0223,4329.9,4329.6,4.0]
[1757535632669,3.2078,4330.3,4330.2,0.4577]
[1757535632870,3.4438,4330.3,4330.2,0.8152]
[1757535633069,3.4438,4330.3,4330.2,29.5152]
[1757535633459,3.4438,4330.3,4330.2,29.0575]
[1757535633660,3.4438,4330.3,4330.2,0.3575]
[1757535633859,3.4438,4330.3,4330.0,0.1316]
[1757535634069,3.4438,4330.3,4330.0,0.4891]
[1757535634269,3.4438,4330.3,4330.1,0.3575]
[1757535635163,3.4438,4330.3,4330.0,0.1316]
[1757535635366,3.4438,4330.3,4330.1,0.3575]
[1757535635567,3.4438,4330.3,4330.0,0.1316]
[1757535636068,3.4438,4330.3,4330.1,0.3575]
[1757535636268,3.4438,4330.3,4330.0,0.1316]
[1757535636463,3.4438,4330.3,4330.1,0.3575]
[1757535636659,3.4438,4330.3,4330.0,0.1316]
[1757535636969,3.4438,4330.3,4330.1,0.3575]
[1757535638363,0.2062578,4330.2,4330.1,0.3575]
[1757535638963,0.2062578,4330.2,4329.5,0.3612]
[1757535639166,3.2078,4329.7,4329.6,0.3575]
[1757535639375,3.4428,4329.7,4329.6,0.5871]
[1757535642676,3.4428,4329.7,4329.6,0.3575]
[1757535643377,3.4428,4329.7,4329.6,0.5871]
[1757535644075,3.4428,4329.7,4329.6,0.3575]
[1757535648477,3.4428,4329.7,4329.2,0.3575]
[1757535648675,3.4428,4329.7,4329.1,28.7]
[1757535648874,0.20554754,4329.6,4329.1,28.7]
[1757535649078,0.4405497,4329.5,4329.1,28.7]
[1757535649282,0.235,4329.5,4329.2,0.3575]
[1757535649478,0.235,4329.5,4329.1,28.7]
[1757535649672,0.235,4329.5,4329.2,0.3575]
[1757535649871,0.235,4329.5,4329.3,0.3575]
[1757535650077,0.235,4329.5,4329.4,0.3575]
[1757535650270,0.44054826,4329.5,4329.4,0.3575]
[1757535651472,0.44054826,4329.5,4329.4,0.5871]
[1757535653180,0.20554826,4329.5,4329.4,0.5871]
[1757535653381,0.44054826,4329.5,4329.4,0.8152]
[1757535654789,0.235,4329.5,4329.4,0.8152]
[1757535655082,3.2078,4329.7,4329.6,0.8152]
[1757535655388,3.64836483,4329.7,4329.6,0.8152]
[1757535658793,3.41336483,4329.7,4329.6,0.8152]
[1757535658994,3.64836483,4329.7,4329.6,0.8152]
[1757535660689,0.20556483,4329.7,4329.6,0.8152]
[1757535660894,0.44056483,4329.7,4329.6,0.8152]
[1757535662689,0.44064089,4329.7,4329.6,0.8152]
[1757535663692,3.2078,4330.2,4330.1,0.7906]
[1757535663888,3.64850935,4330.2,4330.1,0.7906]
[1757535667994,3.41350935,4330.2,4330.1,0.7906]
[1757535668202,3.4428,4330.2,4330.1,0.7906]
[1757535668697,3.4428,4330.2,4330.1,29.4906]
[1757535673899,3.2078,4330.2,4330.1,29.4906]
[1757535674100,3.4428,4330.2,4330.1,29.4906]
[1757535677001,3.2078,4330.2,4330.1,29.4906]
[1757535677195,3.4428,4330.2,4330.1,29.4906]
[1757535677592,3.4428,4330.2,4329.5,0.1316]
[1757535677795,0.7855,4329.6,4329.5,0.3562]
[1757535677996,1.0205,4329.6,4328.8,3.2078]
[1757535678198,0.3334,4329.5,4329.1,28.7]
[1757535678397,1.0205,4329.4,4329.3,0.2246]
[1757535679703,1.0205,4329.4,4329.3,0.5602]
[1757535680605,1.0205,4329.4,4329.3,0.7906]
[1757535680806,0.6871,4329.4,4329.3,0.7906]
[1757535687113,1.0144,4329.4,4329.3,0.7906]
[1757535688210,0.6871,4329.4,4329.3,0.7906]
[1757535692514,1.0144,4329.4,4329.3,0.7906]
[1757535696919,1.0144,4329.4,4329.3,0.3356]
[1757535697117,1.0144,4329.4,4329.1,28.7]
[1757535697118,0.3273,4329.3,4329.2,0.3523]
[1757535697427,0.7698,4329.3,4329.2,0.3523]
[1757535697722,0.7698,4329.3,4329.2,0.588]
[1757535697921,0.7698,4329.3,4329.2,0.8011]
[1757535699323,0.4425,4329.3,4329.2,0.8011]
[1757535700831,0.7698,4329.3,4329.2,0.588]
[1757535702119,0.7698,4329.3,4328.7,0.3523]
[1757535702120,0.3273,4329.2,4328.7,0.3523]
[1757535702430,3.9776,4328.8,4328.7,0.588]
[1757535702630,4.2126,4328.8,4328.7,0.8011]
[1757535704922,3.8853,4328.8,4328.7,0.8011]
[1757535707736,4.2126,4328.8,4328.7,0.8011]
[1757535708835,4.2126,4328.8,4328.1,0.3523]
[1757535709035,0.3273,4328.7,4328.2,0.3523]
[1757535709231,0.2224,4328.3,4328.2,29.73212999]
[1757535709538,0.4574,4328.3,4328.2,29.73212999]
[1757535709739,0.4574,4328.3,4328.2,29.5011]
[1757535710438,3.6503,4328.8,4328.7,0.4488]
[1757535710638,4.2126,4328.8,4328.7,0.8011]
[1757535712136,3.2078,4328.8,4328.7,0.8011]
[1757535712342,3.4428,4328.8,4328.7,0.8011]
[1757535715941,3.2078,4329.3,4329.0,0.1386]
[1757535716132,3.4302,4329.3,4329.2,0.8011]
[1757535716438,3.87089356,4329.3,4329.2,0.8011]
[1757535716637,3.8853,4329.3,4329.2,0.8011]
[1757535717943,3.6503,4329.3,4329.2,0.8011]
[1757535718241,3.8853,4329.3,4329.2,0.8011]
[1757535718542,4.2081,4329.3,4329.2,0.8011]
[1757535719340,4.2081,4329.3,4329.2,0.588]
[1757535719542,4.2081,4329.3,4328.6,0.3135]
[1757535719743,0.3228,4329.2,4328.7,0.3135]
[1757535720043,0.4214,4328.8,4328.7,0.9937]
[1757535720246,0.6564,4328.8,4328.7,0.9937]
[1757535720843,0.6564,4328.8,4328.7,0.7627]
[1757535722446,0.9792,4328.8,4328.7,0.3135]
[1757535722934,0.6564,4328.8,4328.7,0.7627]
[1757535724132,0.3228,4328.7,4327.7,3.2078]
[1757535724344,0.4214,4327.8,4327.7,3.5213]
[1757535724549,0.9792,4327.8,4327.7,3.7391]
[1757535724742,0.9792,4327.8,4327.7,3.9705]
[1757535724949,0.9792,4327.8,4327.7,0.7627]
[1757535730150,0.6564,4327.8,4327.7,0.7627]
[1757535730444,0.235,4327.8,4327.7,0.7627]
[1757535731039,0.235,4328.3,4328.2,0.7627]
[1757535731844,3.2078,4328.9,4328.5,0.5862]
[1757535732052,3.2078,4328.9,4328.8,0.4492]
[1757535732254,3.2078,4329.5,4329.4,0.4492]
[1757535732449,3.653,4329.5,4329.4,29.4627]
[1757535732948,3.418,4329.5,4329.4,29.4627]
[1757535733148,3.653,4329.5,4329.4,29.4627]
[1757535736052,3.9758,4329.5,4329.4,29.4627]
[1757535736459,3.653,4329.5,4329.4,29.4627]
[1757535736852,3.418,4330.0,4329.9,0.7627]
[1757535737053,3.653,4330.0,4329.9,0.7627]
[1757535742662,3.8642,4330.0,4329.9,0.7627]
[1757535743858,4.187,4330.0,4329.9,0.7627]
[1757535744062,1.23963606,4331.8,4330.6,0.7627]
[1757535744264,0.82344362,4331.7,4331.6,0.7627]
[1757535744461,0.7442,4332.4,4332.3,0.2178]
[1757535744656,0.7442,4332.4,4332.3,0.7627]
[1757535745164,0.2102,4332.4,4332.3,0.7627]
[1757535745354,0.2102,4332.4,4332.3,29.4627]
[1757535745554,0.7442,4332.9,4332.8,0.2314]
[1757535745757,0.7442,4332.9,4332.8,0.7627]
[1757535748164,0.7442,4332.9,4332.7,3.2078]
[1757535748460,0.5631,4332.8,4332.7,3.6434]
[1757535748964,0.5631,4332.8,4332.7,3.9668]
[1757535751763,0.237,4333.0,4332.7,3.9668]
[1757535751964,0.4591,4333.0,4332.9,0.4356]
[1757535752365,0.8001,4333.0,4332.9,0.759]
[1757535755870,1.0155,4333.0,4332.9,0.759]
[1757535756175,1.0155,4333.0,4332.7,3.2078]
[1757535756176,0.5631,4333.4,4333.3,0.759]
[1757535756470,0.7785,4333.4,4333.3,0.759]
[1757535756670,0.7785,4333.4,4333.3,29.459]
[1757535758474,0.2221,4333.4,4333.3,29.459]
[1757535758777,0.5631,4333.4,4333.3,28.9185]
[1757535758979,0.5631,4333.4,4333.3,28.7]
[1757535760078,0.7785,4333.8,4333.7,0.759]
[1757535766178,0.4375,4334.3,4334.2,0.4356]
[1757535766383,0.7785,4334.3,4334.2,0.759]
[1757535768878,1.0145,4334.3,4334.2,0.759]
[1757535769278,1.63661342,4334.3,4334.2,0.759]
[1757535770883,1.0145,4334.3,4334.2,0.759]
[1757535771381,1.63750143,4334.3,4334.2,0.759]
[1757535774282,1.83530363,4334.3,4334.2,0.759]
[1757535774782,1.83530363,4334.3,4333.8,28.7]
[1757535774783,1.83530363,4334.3,4333.9,0.3234]
[1757535774984,1.83530363,4334.3,4333.7,3.2078]
[1757535774985,0.2221,4333.8,4333.7,3.6434]
[1757535775281,1.18610143,4333.8,4333.7,3.6434]
[1757535775484,1.18610143,4333.8,4333.7,32.6668]
[1757535776583,0.84510143,4333.8,4333.7,32.6668]
[1757535779084,0.62300143,4333.8,4333.7,32.6668]
[1757535779280,0.341,4334.0,4333.8,0.3188]
[1757535779488,0.5522,4334.0,4333.9,0.7627]
[1757535779886,1.17796521,4334.0,4333.9,0.7627]
[1757535780488,0.83696521,4334.0,4333.9,0.7627]
[1757535781183,1.23963606,4334.6,4334.5,0.2056]
[1757535781381,0.3175,4334.6,4334.5,3.4777]
[1757535781687,0.3175,4334.6,4334.5,3.4134]
[1757535781688,0.5287,4334.6,4334.5,3.4134]
[1757535782478,0.5287,4334.9,4334.8,0.2056]
[1757535782691,0.7493,4334.9,4334.8,0.1028]
[1757535787089,0.3175,4334.8,4334.5,3.2078]
[1757535787390,0.7493,4334.6,4334.5,3.3106]
[1757535787692,0.7493,4334.6,4334.5,32.0106]
[1757535791692,0.5287,4334.6,4334.5,32.0749]
[1757535792194,0.3175,4334.6,4334.5,32.0749]
[1757535800505,0.1364,4335.0,4334.9,0.2699]
[1757535800703,0.3476,4335.0,4334.9,0.2056]
[1757535800899,0.1426,4335.5,4334.9,0.2056]
[1757535801106,0.1426,4335.5,4335.3,0.2699]
[1757535801107,0.3175,4335.4,4335.3,0.2699]
[1757535805408,0.5287,4335.4,4335.3,0.2056]
[1757535806410,0.7493,4335.4,4335.3,0.2056]
[1757535808110,0.5287,4335.4,4335.3,0.2056]
[1757535809311,0.5287,4335.4,4335.3,28.9056]
[1757535810207,0.6864,4336.0,4335.9,0.185]
[1757535810407,0.6864,4336.0,4335.9,3.3928]
[1757535810917,0.9175,4336.0,4335.9,3.3928]
[1757535813717,0.6864,4336.0,4335.9,3.4506]
[1757535814019,0.9175,4336.0,4335.9,3.3928]
[1757535815120,3.6646,4337.4,4337.3,0.761]
[1757535815310,3.6646,4337.4,4337.0,0.3185]
[1757535816016,0.4568,4337.4,4337.0,0.3185]
[1757535816618,0.4568,4337.4,4336.9,28.2]
[1757535816812,0.4568,4337.4,4337.3,0.5409]
[1757535817121,0.7749,4337.4,4337.3,0.761]
[1757535817524,0.7749,4337.4,4337.3,0.2224]
[1757535819927,0.7749,4337.4,4337.2,3.2078]
[1757535820121,0.3181,4337.3,4337.2,3.2078]
[1757535820321,0.7749,4337.3,4337.2,3.2078]
[1757535820524,4.68736001,4337.3,4336.9,28.2]
[1757535820728,0.1332,4337.5,4336.7,3.2078]
[1757535820729,0.7749,4336.8,4336.7,3.2078]
[1757535822529,0.7749,4336.8,4336.3,0.3185]
[1757535822727,0.59,4336.5,4336.4,0.2224]
[1757535823122,0.59,4336.5,4336.2,3.2078]
[1757535823323,0.4568,4336.3,4336.2,3.4302]
[1757535823523,0.7749,4336.3,4336.2,31.6302]
[1757535823930,0.7749,4336.3,4336.2,31.9487]
[1757535826828,0.5438,4336.3,4336.2,31.9487]
[1757535830634,0.5438,4336.3,4336.2,3.9688]
[1757535835028,5.00551,4336.3,4336.2,3.4302]
[1757535835233,0.7749,4335.7,4335.6,3.4302]
[1757535836134,0.1332,4335.5,4335.4,0.2224]
[1757535836435,0.59,4335.5,4335.4,0.2224]
[1757535836836,0.9081,4335.5,4335.4,0.2224]
[1757535838838,0.4308,4335.0,4334.9,0.7378]
[1757535839037,0.8875,4335.0,4334.9,0.417]
[1757535839539,0.8875,4335.0,4334.9,0.7378]
[1757535842642,0.8875,4335.0,4334.9,0.207]
[1757535842843,0.4308,4334.6,4334.5,3.6248]
[1757535843038,0.755,4334.6,4334.5,3.9456]
[1757535843244,0.2175,4335.0,4334.9,0.7378]
[1757535843838,0.5417,4335.0,4334.9,0.7378]
[1757535845536,0.3242,4335.4,4334.9,0.417]
[1757535845744,0.755,4335.8,4335.7,0.7378]
[1757535846141,3.9628,4335.8,4335.7,0.7378]
[1757535847047,0.755,4335.8,4335.7,0.7378]
[1757535849347,0.235,4335.9,4335.7,0.7378]
[1757535849649,0.235,4335.9,4335.8,0.7378]
[1757535849843,0.5592,4335.9,4335.8,0.7378]
[1757535850046,0.7767,4335.9,4335.8,0.7378]
[1757535854346,0.5417,4335.9,4335.8,0.7378]
[1757535854548,0.3242,4336.3,4335.8,0.417]
[1757535854751,3.6386,4336.4,4336.3,0.207]
[1757535855049,3.6386,4336.4,4336.3,0.5278]
[1757535855242,3.6386,4336.4,4336.3,0.7378]
[1757535855444,3.9628,4336.4,4336.0,28.2]
[1757535855643,0.4308,4336.1,4336.0,28.5208]
[1757535855848,0.755,4336.1,4336.0,28.5208]
[1757535860953,0.755,4336.1,4336.0,0.207]
[1757535866358,0.2175,4335.5,4335.4,0.417]
[1757535866552,0.755,4335.5,4335.4,0.7378]
[1757535867260,0.8729,4335.5,4335.4,0.728]
[1757535867459,0.7421,4335.5,4335.4,0.728]
[1757535869863,0.8729,4335.5,4335.4,0.728]
[1757535871664,0.5463,4336.2,4335.8,0.4117]
[1757535871962,3.6457,4336.4,4336.3,0.2053]
[1757535872151,3.84243914,4336.4,4336.1,0.3163]
[1757535872350,0.3113,4336.3,4335.8,0.3163]
[1757535872558,0.5345,4335.9,4335.8,0.728]
[1757535872759,3.2078,4336.4,4335.8,0.728]
[1757535872961,3.6457,4336.4,4336.3,0.2053]
[1757535873157,0.4379,4335.3,4335.2,0.2053]
[1757535873562,0.7492,4335.3,4335.2,0.2053]
[1757535874759,0.7492,4335.3,4335.2,0.5216]
[1757535875068,0.7492,4335.3,4335.2,0.728]
[1757535876456,0.5345,4335.3,4335.2,0.728]
[1757535876855,0.7492,4335.3,4335.2,0.728]
[1757535879672,0.7492,4335.3,4335.2,0.963]
[1757535880260,0.7492,4335.3,4335.2,0.2053]
[1757535880465,0.4379,4335.3,4335.2,0.235]
[1757535880968,0.7492,4335.3,4335.2,0.4403]
[1757535881170,0.7492,4334.8,4334.7,3.2078]
[1757535881365,0.7492,4334.8,4334.7,3.4428]
[1757535881870,0.7492,4334.8,4334.7,3.6481]
[1757535882565,0.7492,4334.8,4334.7,3.4131]
[1757535884065,0.7492,4334.8,4334.7,3.6195]
[1757535884270,0.7492,4334.8,4334.7,3.9358]
[1757535885863,0.7492,4334.8,4334.7,4.1708]
[1757535894593,0.5345,4334.8,4334.7,4.1708]
[1757535895992,0.5345,4334.8,4334.7,3.9358]
[1757535896195,0.5345,4334.8,4334.7,4.1708]
[1757535897798,0.72,4335.4,4335.3,0.2183]
[1757535898000,1.14458083,4335.4,4335.3,0.2183]
[1757535899701,0.91390083,4335.4,4335.3,0.2183]
[1757535902497,0.91390083,4335.4,4335.3,0.7281]
[1757535902797,0.72,4335.4,4335.3,0.7281]
[1757535903696,0.5091,4335.4,4335.3,0.7281]
[1757535904596,0.235,4336.2,4335.4,0.305]
[1757535904804,0.235,4336.2,4335.2,3.2078]
[1757535904805,0.5492,4336.0,4335.9,0.2183]
[1757535904996,1.35408123,4336.0,4335.6,0.305]
[1757535905196,0.72,4335.7,4335.6,0.5233]
[1757535905395,0.91409103,4335.7,4335.6,0.5233]
[1757535906303,0.91409103,4335.7,4335.6,0.2183]
[1757535907110,0.91409103,4335.7,4335.6,0.5233]
[1757535907407,0.91409103,4335.7,4335.6,0.7281]
[1757535907799,0.91409103,4335.7,4335.6,0.4231]
[1757535909706,0.91409103,4335.7,4335.6,0.7281]
[1757535910007,0.91413719,4335.7,4335.6,0.7281]
[1757535910203,0.72,4335.7,4335.6,0.7281]
[1757535910403,0.91415497,4335.7,4335.6,0.4231]
[1757535910600,0.72,4335.7,4335.6,0.4231]
[1757535911907,0.91416639,4335.7,4335.6,0.4231]
[1757535912309,0.72,4335.7,4335.6,0.4231]
[1757535912612,0.72,4335.7,4335.6,0.7281]
[1757535913314,0.91416196,4335.7,4335.6,0.7281]
[1757535914713,0.91416196,4335.7,4335.6,0.4231]
[1757535916414,0.91416196,4335.7,4335.6,0.7281]
[1757535916805,0.91457406,4335.7,4335.6,0.7281]
[1757535919411,0.91457406,4335.7,4335.6,0.4231]
[1757535919614,0.4184,4334.8,4334.2,0.305]
[1757535919816,0.72,4334.7,4334.6,0.2183]
[1757535920017,0.72,4334.7,4334.6,0.5233]
[1757535921218,0.1234,4334.5,4334.1,3.5128]
[1757535921413,0.72,4334.2,4334.1,3.7311]
[1757535921612,0.72,4334.2,4334.1,3.9359]
[1757535923718,0.72,4334.2,4334.1,3.4261]
[1757535923917,0.72,4333.7,4333.6,28.2]
[1757535924217,0.72,4333.4,4333.3,0.5233]
[1757535924808,0.72,4333.4,4333.3,0.2183]
[1757535927318,0.72,4333.4,4333.3,0.7483]
[1757535936422,0.3263,4333.9,4333.4,0.3252]
[1757535936622,0.5395,4333.9,4333.8,0.7294]
[1757535937020,0.8802,4333.5,4333.0,0.1199]
[1757535937220,0.4248,4333.4,4333.3,0.2064]
[1757535937521,0.7511,4333.4,4333.3,0.7294]
[1757535937918,0.7511,4333.4,4333.3,0.4042]
[1757535938224,0.7511,4333.4,4333.3,0.7294]
[1757535940529,0.5395,4333.4,4333.3,0.7294]
[1757535946128,0.8802,4333.0,4332.9,3.2078]
[1757535946328,0.1291,4332.0,4331.9,0.2064]
[1757535946534,0.8802,4332.0,4331.9,0.2064]
[1757535946831,0.8802,4332.0,4331.9,28.4064]
[1757535947728,0.8802,4332.0,4331.9,28.7316]
[1757535953534,0.8802,4332.0,4331.9,0.2064]
[1757535954038,0.8802,4332.0,4331.9,0.5316]
[1757535955234,0.8802,4332.0,4331.9,0.2064]
[1757535955430,0.8802,4332.0,4331.7,0.3252]
[1757535955635,0.2132,4331.3,4331.2,0.5316]
[1757535955937,0.3263,4331.9,4331.2,28.6042]
[1757535956140,0.7511,4331.9,4331.8,0.5316]
[1757535956435,0.7511,4331.9,4331.8,0.7294]
[1757535956641,0.7511,4331.9,4331.8,0.4042]
[1757535956833,0.7511,4331.9,4331.8,0.2064]
[1757535957840,0.7511,4331.9,4331.2,28.2]
[1757535958042,0.7328,4331.9,4331.8,0.212]
[1757535958241,0.7328,4331.9,4331.8,0.52]
[1757535958540,0.7328,4331.9,4331.8,0.212]
[1757535960742,0.308,4332.4,4332.3,0.212]
[1757535960945,0.7125,4332.4,4332.3,0.7323]
[1757535963740,0.1296,4332.0,4331.7,0.308]
[1757535963935,0.7125,4331.8,4331.7,0.212]
[1757535965441,0.7125,4331.8,4331.7,0.7323]
[1757535969150,0.308,4331.8,4331.7,0.7323]
[1757535969440,0.308,4332.3,4331.7,0.4243]
[1757535969639,0.7125,4332.3,4332.2,0.212]
[1757535969945,0.7125,4332.3,4332.2,0.52]
[1757535972048,0.9475,4332.3,4332.2,0.7323]
[1757535972949,0.9475,4332.3,4332.2,0.4243]
[1757535974344,0.9475,4332.3,4332.2,0.212]
[1757535975048,1.14406622,4332.3,4332.2,0.212]
[1757535975236,1.14406622,4332.3,4331.6,3.2078]
[1757535975237,0.308,4332.2,4331.6,3.2078]
[1757535975442,0.7125,4331.8,4331.7,0.7323]
[1757535976347,0.1296,4332.0,4331.6,3.2078]
[1757535976348,0.308,4331.7,4331.6,3.2078]
[1757535976550,0.7125,4331.7,4331.6,3.2078]
[1757535978147,0.7125,4331.7,4331.6,3.4198]
[1757535978450,0.7125,4331.7,4331.6,3.7278]
[1757535979545,3.2078,4332.4,4331.8,0.4243]
[1757535979848,0.8421,4332.0,4331.7,0.308]
[1757535980152,0.7125,4331.7,4331.6,0.212]
[1757535980951,0.7125,4331.7,4331.6,0.7323]
[1757535982152,0.9093597,4331.7,4331.6,0.7323]
[1757535982542,0.90934279,4331.7,4331.6,0.7323]
[1757535984052,0.5129,4331.7,4331.6,0.7323]
[1757535988452,0.7125,4331.7,4331.6,0.7323]
[1757535994660,0.7125,4331.7,4331.6,0.4243]
[1757535995362,0.7125,4331.7,4331.6,0.725]
[1757536000668,0.7238,4331.2,4330.9,0.3007]
[1757536000874,0.7238,4331.2,4330.5,3.3278]
[1757536000875,0.1998,4330.7,4330.6,0.2077]
[1757536001066,0.7238,4330.7,4330.6,0.2077]
[1757536004175,0.7238,4330.7,4330.5,3.2078]
[1757536004367,0.7238,4330.6,4330.5,3.2078]
[1757536006482,0.9588,4330.6,4330.5,3.2078]
[1757536006774,0.9588,4330.6,4330.2,28.2]
[1757536007081,0.4272,4330.5,4330.4,0.2077]
[1757536007276,0.8429,4330.5,4330.4,0.2077]
[1757536013066,0.8429,4330.5,4330.4,0.5084]